[Event "Titled Tuesday Blitz May 9 Early 2023"]
[White "Castillo Pena, Patricia Evarista"]
[Black "Srebrnic, Ana"]
[WhiteFideId "6412106"]
[BlackFideId "14603314"]
[WhiteElo "1919"]
[BlackElo "2181"]
[Result "1-0"]
[Round "04"]
[TimeControl "180+2"]
[Date "2023.05.09"]
[WhiteClock "0:00:04"]
[BlackClock "0:00:00"]

1. d4 {[%clk 0:03:00]}  Nf6 {[%clk 0:02:58]} 2. Nf3 {[%clk 0:03:00]}  e6 {[%clk 0:02:57]} 3. e3 {[%clk 0:03:00]}  d5 {[%clk 0:02:55]} 4. Bd3 {[%clk 0:02:58]}  c5 {[%clk 0:02:53]} 5. b3 {[%clk 0:02:58]}  Nc6 {[%clk 0:02:51]} 6. Bb2 {[%clk 0:02:58]}  Be7 {[%clk 0:02:50]} 7. O-O {[%clk 0:02:58]}  O-O {[%clk 0:02:51]} 8. Nbd2 {[%clk 0:02:58]}  b6 {[%clk 0:02:44]} 9. Ne5 {[%clk 0:02:57]}  Bb7 {[%clk 0:02:35]} 10. a3 {[%clk 0:02:55]}  cxd4 {[%clk 0:02:27]} 11. exd4 {[%clk 0:02:55]}  Rc8 {[%clk 0:02:27]} 12. Rc1 {[%clk 0:02:54]}  Qc7 {[%clk 0:02:18]} 13. Qe2 {[%clk 0:02:50]}  Nd7 {[%clk 0:02:17]} 14. Rfe1 {[%clk 0:02:39]}  Bf6 {[%clk 0:02:13]} 15. c4 {[%clk 0:02:34]}  dxc4 {[%clk 0:01:52]} 16. bxc4 {[%clk 0:02:25]}  Bxe5 {[%clk 0:01:46]} 17. dxe5 {[%clk 0:02:24]}  Nc5 {[%clk 0:01:34]} 18. Bb1 {[%clk 0:02:19]}  Rcd8 {[%clk 0:01:21]} 19. Ne4 {[%clk 0:02:16]}  Ne7 {[%clk 0:00:30]} 20. Nf6+ {[%clk 0:01:16]}  gxf6 {[%clk 0:00:22]} 21. exf6 {[%clk 0:01:16]}  Ng6 {[%clk 0:00:22]} 22. Qh5 {[%clk 0:01:16]}  Qc6 {[%clk 0:00:17]} 23. Be4 {[%clk 0:01:02]}  Nxe4 {[%clk 0:00:17]} 24. Qh6 {[%clk 0:01:00]}  Nxf6 {[%clk 0:00:15]} 25. f3 {[%clk 0:00:40]}  Qc5+ {[%clk 0:00:13]} 26. Kh1 {[%clk 0:00:39]}  Qf5 {[%clk 0:00:12]} 27. Rcd1 {[%clk 0:00:12]}  Rxd1 {[%clk 0:00:11]} 28. Rxd1 {[%clk 0:00:12]}  Bxf3 {[%clk 0:00:09]} 29. Rf1 {[%clk 0:00:08]}  Bxg2+ {[%clk 0:00:06]} 30. Kxg2 {[%clk 0:00:08]}  Qg4+ {[%clk 0:00:06]} 31. Kh1 {[%clk 0:00:08]}  Qe4+ {[%clk 0:00:06]} 32. Kg1 {[%clk 0:00:07]}  Qe3+ {[%clk 0:00:06]} 33. Qxe3 {[%clk 0:00:06]}  Kg7 {[%clk 0:00:06]} 34. Qg5 {[%clk 0:00:04]}  Kg8 {[%clk 0:00:04]} 35. Qxf6 {[%clk 0:00:05]}  e5 {[%clk 0:00:00]} 36. Bxe5 {[%clk 0:00:04]} 1-0


[Site "https://www.chess.com"]

[Event "Titled Tuesday Blitz May 9 Early 2023"]
[White "Bortnyk, Olexandr"]
[Black "Grigoriants, Sergey"]
[WhiteFideId "14120828"]
[BlackFideId "4130804"]
[WhiteElo "2734"]
[BlackElo "2502"]
[Result "1-0"]
[Round "05"]
[TimeControl "180+2"]
[Date "2023.05.09"]
[WhiteClock "0:00:13"]
[BlackClock "0:00:00"]

1. d4 {[%clk 0:02:59]}  Nf6 {[%clk 0:02:51]} 2. Nc3 {[%clk 0:02:59]}  d5 {[%clk 0:02:48]} 3. Bf4 {[%clk 0:03:00]}  Bf5 {[%clk 0:02:46]} 4. e3 {[%clk 0:03:00]}  e6 {[%clk 0:02:44]} 5. Nf3 {[%clk 0:02:59]}  a6 {[%clk 0:02:33]} 6. Ne5 {[%clk 0:02:57]}  h6 {[%clk 0:02:33]} 7. g4 {[%clk 0:02:46]}  Bh7 {[%clk 0:02:32]} 8. h4 {[%clk 0:02:47]}  Nfd7 {[%clk 0:02:29]} 9. Bd3 {[%clk 0:02:44]}  Nxe5 {[%clk 0:02:27]} 10. Bxe5 {[%clk 0:02:42]}  Nc6 {[%clk 0:02:19]} 11. Bg3 {[%clk 0:02:37]}  Bd6 {[%clk 0:02:16]} 12. f4 {[%clk 0:02:32]}  Qe7 {[%clk 0:01:57]} 13. Bxh7 {[%clk 0:02:27]}  Rxh7 {[%clk 0:01:57]} 14. Qd3 {[%clk 0:02:28]}  Rh8 {[%clk 0:01:57]} 15. O-O-O {[%clk 0:02:29]}  O-O-O {[%clk 0:01:57]} 16. Kb1 {[%clk 0:02:29]}  h5 {[%clk 0:01:53]} 17. g5 {[%clk 0:02:26]}  f5 {[%clk 0:01:41]} 18. Ne2 {[%clk 0:02:19]}  g6 {[%clk 0:01:38]} 19. Be1 {[%clk 0:02:20]}  Qd7 {[%clk 0:01:32]} 20. Ng1 {[%clk 0:02:19]}  Na7 {[%clk 0:01:28]} 21. Nf3 {[%clk 0:02:18]}  Qb5 {[%clk 0:01:28]} 22. Rc1 {[%clk 0:02:10]}  Rhe8 {[%clk 0:01:23]} 23. Rh2 {[%clk 0:02:06]}  Kb8 {[%clk 0:01:18]} 24. a3 {[%clk 0:02:00]}  Nc8 {[%clk 0:01:02]} 25. c4 {[%clk 0:01:34]}  dxc4 {[%clk 0:01:00]} 26. Qxc4 {[%clk 0:01:34]}  Qxc4 {[%clk 0:00:58]} 27. Rxc4 {[%clk 0:01:34]}  Nb6 {[%clk 0:00:59]} 28. Rc1 {[%clk 0:01:31]}  Nd5 {[%clk 0:00:59]} 29. Re2 {[%clk 0:01:29]}  Rc8 {[%clk 0:00:57]} 30. Bf2 {[%clk 0:01:28]}  Re7 {[%clk 0:00:52]} 31. Rec2 {[%clk 0:01:28]}  Rd7 {[%clk 0:00:49]} 32. Ne1 {[%clk 0:01:24]}  b6 {[%clk 0:00:40]} 33. Nd3 {[%clk 0:01:25]}  Kb7 {[%clk 0:00:40]} 34. Ka2 {[%clk 0:01:23]}  a5 {[%clk 0:00:40]} 35. Re2 {[%clk 0:01:19]}  Ra8 {[%clk 0:00:39]} 36. Be1 {[%clk 0:01:12]}  Rf8 {[%clk 0:00:38]} 37. Bd2 {[%clk 0:01:12]}  Rdf7 {[%clk 0:00:36]} 38. Kb1 {[%clk 0:01:06]}  Rd8 {[%clk 0:00:37]} 39. e4 {[%clk 0:01:01]}  fxe4 {[%clk 0:00:35]} 40. Rxe4 {[%clk 0:01:02]}  Re8 {[%clk 0:00:33]} 41. Rce1 {[%clk 0:01:01]}  Rfe7 {[%clk 0:00:33]} 42. Rf1 {[%clk 0:00:59]}  Kc8 {[%clk 0:00:32]} 43. Ne5 {[%clk 0:00:48]}  Rg7 {[%clk 0:00:31]} 44. Nd3 {[%clk 0:00:38]}  Kd7 {[%clk 0:00:29]} 45. Kc2 {[%clk 0:00:39]}  Rf7 {[%clk 0:00:29]} 46. Rfe1 {[%clk 0:00:37]}  Rfe7 {[%clk 0:00:26]} 47. Kb3 {[%clk 0:00:37]}  Rf7 {[%clk 0:00:22]} 48. Kc4 {[%clk 0:00:36]}  c6 {[%clk 0:00:23]} 49. Kb3 {[%clk 0:00:37]}  Nc7 {[%clk 0:00:21]} 50. Rc1 {[%clk 0:00:31]}  Rf5 {[%clk 0:00:21]} 51. Ka2 {[%clk 0:00:30]}  Ref8 {[%clk 0:00:20]} 52. Rce1 {[%clk 0:00:30]}  Rd5 {[%clk 0:00:19]} 53. R1e2 {[%clk 0:00:29]}  Rdf5 {[%clk 0:00:18]} 54. Kb1 {[%clk 0:00:27]}  Rd5 {[%clk 0:00:19]} 55. Re1 {[%clk 0:00:21]}  Rf7 {[%clk 0:00:19]} 56. Rf1 {[%clk 0:00:20]}  Rf8 {[%clk 0:00:19]} 57. Rf2 {[%clk 0:00:20]}  Nb5 {[%clk 0:00:19]} 58. Be3 {[%clk 0:00:20]}  Nc7 {[%clk 0:00:19]} 59. Ne5+ {[%clk 0:00:21]}  Bxe5 {[%clk 0:00:18]} 60. fxe5 {[%clk 0:00:22]}  Rxf2 {[%clk 0:00:16]} 61. Bxf2 {[%clk 0:00:23]}  Ke7 {[%clk 0:00:16]} 62. Rf4 {[%clk 0:00:24]}  Ne8 {[%clk 0:00:16]} 63. Kc2 {[%clk 0:00:22]}  Rd7 {[%clk 0:00:12]} 64. Rf3 {[%clk 0:00:23]}  Rd5 {[%clk 0:00:12]} 65. Rb3 {[%clk 0:00:22]}  Rb5 {[%clk 0:00:10]} 66. Rc3 {[%clk 0:00:18]}  Kd7 {[%clk 0:00:09]} 67. Rf3 {[%clk 0:00:19]}  Ke7 {[%clk 0:00:10]} 68. a4 {[%clk 0:00:18]}  Rb4 {[%clk 0:00:07]} 69. b3 {[%clk 0:00:17]}  b5 {[%clk 0:00:07]} 70. d5 {[%clk 0:00:16]}  Re4 {[%clk 0:00:02]} 71. Bc5+ {[%clk 0:00:17]}  Kd7 {[%clk 0:00:01]} 72. Rf7+ {[%clk 0:00:17]}  Kc8 {[%clk 0:00:00]} 73. d6 {[%clk 0:00:13]} 1-0


[Site "https://www.chess.com"]

[Event "Titled Tuesday Blitz May 9 Early 2023"]
[White "Mekhitarian, Krikor Sevag"]
[Black "Sarana, Alexey"]
[WhiteFideId "2107660"]
[BlackFideId "24133795"]
[WhiteElo "2604"]
[BlackElo "2714"]
[Result "0-1"]
[Round "05"]
[TimeControl "180+2"]
[Date "2023.05.09"]
[WhiteClock "0:00:00"]
[BlackClock "0:00:10"]

1. Nf3 {[%clk 0:03:00]}  d5 {[%clk 0:02:31]} 2. c4 {[%clk 0:03:00]}  dxc4 {[%clk 0:02:29]} 3. e3 {[%clk 0:02:59]}  Nf6 {[%clk 0:02:27]} 4. Bxc4 {[%clk 0:02:59]}  a6 {[%clk 0:02:26]} 5. O-O {[%clk 0:02:55]}  b5 {[%clk 0:02:25]} 6. Be2 {[%clk 0:02:56]}  Bb7 {[%clk 0:02:26]} 7. b3 {[%clk 0:02:56]}  e6 {[%clk 0:02:26]} 8. Bb2 {[%clk 0:02:57]}  c5 {[%clk 0:02:26]} 9. a4 {[%clk 0:02:55]}  b4 {[%clk 0:02:26]} 10. d3 {[%clk 0:02:55]}  Be7 {[%clk 0:02:26]} 11. Nbd2 {[%clk 0:02:55]}  O-O {[%clk 0:02:27]} 12. Nc4 {[%clk 0:02:47]}  Nbd7 {[%clk 0:02:27]} 13. Qc2 {[%clk 0:02:45]}  Nd5 {[%clk 0:02:26]} 14. Rfd1 {[%clk 0:02:26]}  Rc8 {[%clk 0:02:25]} 15. Rac1 {[%clk 0:02:26]}  Qc7 {[%clk 0:02:23]} 16. g3 {[%clk 0:02:18]}  Rfd8 {[%clk 0:02:21]} 17. e4 {[%clk 0:02:18]}  N5f6 {[%clk 0:02:21]} 18. a5 {[%clk 0:02:09]}  Bc6 {[%clk 0:02:19]} 19. Nfe5 {[%clk 0:02:03]}  Bb5 {[%clk 0:02:19]} 20. Bf1 {[%clk 0:01:56]}  Nxe5 {[%clk 0:02:17]} 21. Bxe5 {[%clk 0:01:52]}  Qb7 {[%clk 0:02:18]} 22. Bg2 {[%clk 0:01:44]}  Nd7 {[%clk 0:02:14]} 23. Bb2 {[%clk 0:01:36]}  Bxc4 {[%clk 0:02:09]} 24. dxc4 {[%clk 0:01:28]}  Qc7 {[%clk 0:02:06]} 25. e5 {[%clk 0:01:28]}  Nxe5 {[%clk 0:01:58]} 26. Bxe5 {[%clk 0:01:02]}  Qxe5 {[%clk 0:01:58]} 27. Bb7 {[%clk 0:01:03]}  Rb8 {[%clk 0:01:54]} 28. Bxa6 {[%clk 0:01:01]}  Qc7 {[%clk 0:01:54]} 29. Ra1 {[%clk 0:00:47]}  Bf6 {[%clk 0:01:49]} 30. Rxd8+ {[%clk 0:00:43]}  Rxd8 {[%clk 0:01:33]} 31. Rd1 {[%clk 0:00:39]}  Bd4 {[%clk 0:01:28]} 32. Bb5 {[%clk 0:00:33]}  Qxa5 {[%clk 0:01:24]} 33. Bc6 {[%clk 0:00:33]}  Qc7 {[%clk 0:01:18]} 34. Bf3 {[%clk 0:00:32]}  g6 {[%clk 0:01:18]} 35. Kg2 {[%clk 0:00:32]}  Rd6 {[%clk 0:01:18]} 36. h4 {[%clk 0:00:32]}  Ra6 {[%clk 0:01:13]} 37. Rd2 {[%clk 0:00:28]}  Qe7 {[%clk 0:01:11]} 38. Qe4 {[%clk 0:00:26]}  Ra3 {[%clk 0:01:09]} 39. Qc2 {[%clk 0:00:23]}  Qf6 {[%clk 0:01:09]} 40. h5 {[%clk 0:00:23]}  Kg7 {[%clk 0:01:09]} 41. Re2 {[%clk 0:00:20]}  Ra1 {[%clk 0:01:06]} 42. Qe4 {[%clk 0:00:17]}  Rc1 {[%clk 0:00:57]} 43. hxg6 {[%clk 0:00:11]}  hxg6 {[%clk 0:00:57]} 44. Ra2 {[%clk 0:00:09]}  Rc3 {[%clk 0:00:55]} 45. Bd1 {[%clk 0:00:09]}  Qg5 {[%clk 0:00:44]} 46. Ra7 {[%clk 0:00:06]}  Qf6 {[%clk 0:00:23]} 47. Qf4 {[%clk 0:00:03]}  Qxf4 {[%clk 0:00:19]} 48. gxf4 {[%clk 0:00:04]}  Rd3 {[%clk 0:00:20]} 49. Bf3 {[%clk 0:00:03]}  Rxb3 {[%clk 0:00:15]} 50. Bc6 {[%clk 0:00:03]}  Rb2 {[%clk 0:00:13]} 51. Be8 {[%clk 0:00:02]}  Rxf2+ {[%clk 0:00:12]} 52. Kg3 {[%clk 0:00:03]}  b3 {[%clk 0:00:12]} 53. Bxf7 {[%clk 0:00:02]}  b2 {[%clk 0:00:10]} 54. Bxe6+ {[%clk 0:00:02]}  Kf8 {[%clk 0:00:10]} 55. Rb7 {[%clk 0:00:00]}  Rf1 {[%clk 0:00:10]} 0-1


[Site "https://www.chess.com"]

[Event "Titled Tuesday Blitz May 9 Early 2023"]
[White "Shimanov, Aleksandr"]
[Black "Beerdsen, Thomas"]
[WhiteFideId "4198603"]
[BlackFideId "1030108"]
[WhiteElo "2631"]
[BlackElo "2549"]
[Result "0-1"]
[Round "05"]
[TimeControl "180+2"]
[Date "2023.05.09"]
[WhiteClock "0:00:00"]
[BlackClock "0:01:15"]

1. e4 {[%clk 0:03:00]}  c5 {[%clk 0:02:59]} 2. d4 {[%clk 0:03:00]}  cxd4 {[%clk 0:02:59]} 3. Qxd4 {[%clk 0:03:01]}  Nc6 {[%clk 0:03:00]} 4. Qd3 {[%clk 0:02:59]}  e6 {[%clk 0:02:56]} 5. Nc3 {[%clk 0:02:58]}  a6 {[%clk 0:02:55]} 6. Bf4 {[%clk 0:02:58]}  b5 {[%clk 0:02:55]} 7. O-O-O {[%clk 0:02:57]}  Bb7 {[%clk 0:02:52]} 8. Kb1 {[%clk 0:02:49]}  Rc8 {[%clk 0:02:52]} 9. Nf3 {[%clk 0:02:31]}  Nf6 {[%clk 0:02:46]} 10. h4 {[%clk 0:02:27]}  Ng4 {[%clk 0:02:43]} 11. Bg3 {[%clk 0:02:22]}  Bc5 {[%clk 0:02:43]} 12. Qe2 {[%clk 0:02:17]}  O-O {[%clk 0:02:40]} 13. e5 {[%clk 0:02:16]}  f5 {[%clk 0:02:39]} 14. exf6 {[%clk 0:02:10]}  Nxf6 {[%clk 0:02:40]} 15. Ne4 {[%clk 0:02:07]}  Nb4 {[%clk 0:02:35]} 16. Nxf6+ {[%clk 0:01:30]}  Qxf6 {[%clk 0:02:32]} 17. Ne5 {[%clk 0:01:30]}  Bxf2 {[%clk 0:02:22]} 18. Nxd7 {[%clk 0:01:21]}  Qf5 {[%clk 0:02:14]} 19. Nxf8 {[%clk 0:01:21]}  Be4 {[%clk 0:02:09]} 20. Bxf2 {[%clk 0:00:47]}  Rxc2 {[%clk 0:01:43]} 21. Ka1 {[%clk 0:00:06]}  Rxe2 {[%clk 0:01:42]} 22. Bxe2 {[%clk 0:00:07]}  Qxf2 {[%clk 0:01:39]} 23. Bg4 {[%clk 0:00:01]}  Nc2+ {[%clk 0:01:35]} 24. Kb1 {[%clk 0:00:02]}  Ne3+ {[%clk 0:01:36]} 25. Ka1 {[%clk 0:00:00]}  Nxd1 {[%clk 0:01:15]} 0-1


[Site "https://www.chess.com"]

[Event "Titled Tuesday Blitz May 9 Early 2023"]
[White "Rodshtein, Maxim"]
[Black "Lenderman, Aleksandr"]
[WhiteFideId "2806851"]
[BlackFideId "2021285"]
[WhiteElo "2555"]
[BlackElo "2607"]
[Result "1-0"]
[Round "05"]
[TimeControl "180+2"]
[Date "2023.05.09"]
[WhiteClock "0:01:35"]
[BlackClock "0:01:05"]

1. d4 {[%clk 0:03:00]}  e6 {[%clk 0:02:57]} 2. Nf3 {[%clk 0:03:01]}  Nf6 {[%clk 0:02:54]} 3. e3 {[%clk 0:02:59]}  g6 {[%clk 0:02:52]} 4. b3 {[%clk 0:02:55]}  Bg7 {[%clk 0:02:52]} 5. Bb2 {[%clk 0:02:55]}  O-O {[%clk 0:02:52]} 6. Be2 {[%clk 0:02:55]}  c5 {[%clk 0:02:51]} 7. O-O {[%clk 0:02:55]}  cxd4 {[%clk 0:02:51]} 8. Nxd4 {[%clk 0:02:55]}  Nc6 {[%clk 0:02:51]} 9. c4 {[%clk 0:02:53]}  d5 {[%clk 0:02:44]} 10. Nd2 {[%clk 0:02:45]}  Bd7 {[%clk 0:02:39]} 11. N4f3 {[%clk 0:02:39]}  Rc8 {[%clk 0:02:37]} 12. a3 {[%clk 0:02:39]}  Re8 {[%clk 0:02:36]} 13. b4 {[%clk 0:02:38]}  a6 {[%clk 0:02:29]} 14. Rc1 {[%clk 0:02:37]}  Qe7 {[%clk 0:02:27]} 15. h3 {[%clk 0:02:37]}  Red8 {[%clk 0:02:26]} 16. Qb3 {[%clk 0:02:34]}  dxc4 {[%clk 0:02:21]} 17. Nxc4 {[%clk 0:02:31]}  Be8 {[%clk 0:02:21]} 18. Nb6 {[%clk 0:02:25]}  Rc7 {[%clk 0:02:20]} 19. Rfd1 {[%clk 0:02:25]}  Rxd1+ {[%clk 0:02:18]} 20. Rxd1 {[%clk 0:02:25]}  Na7 {[%clk 0:02:13]} 21. Be5 {[%clk 0:02:16]}  Rc6 {[%clk 0:02:14]} 22. Nc4 {[%clk 0:02:16]}  Nd5 {[%clk 0:02:06]} 23. Bxg7 {[%clk 0:02:10]}  Kxg7 {[%clk 0:02:07]} 24. e4 {[%clk 0:02:10]}  Nf4 {[%clk 0:01:58]} 25. Bf1 {[%clk 0:02:10]}  f6 {[%clk 0:01:44]} 26. Qe3 {[%clk 0:02:02]}  b5 {[%clk 0:01:32]} 27. Na5 {[%clk 0:01:56]}  e5 {[%clk 0:01:33]} 28. Nxc6 {[%clk 0:01:52]}  Nxc6 {[%clk 0:01:34]} 29. Qb6 {[%clk 0:01:45]}  g5 {[%clk 0:01:27]} 30. Qxa6 {[%clk 0:01:38]}  Nd8 {[%clk 0:01:23]} 31. Bxb5 {[%clk 0:01:36]}  Bh5 {[%clk 0:01:05]} 32. Rd7 {[%clk 0:01:35]} 1-0


[Site "https://www.chess.com"]

[Event "Titled Tuesday Blitz May 9 Early 2023"]
[White "Kramnik, Vladimir"]
[Black "Peng, Li Min"]
[WhiteFideId "4101588"]
[BlackFideId "14112620"]
[WhiteElo "2703"]
[BlackElo "2436"]
[Result "1-0"]
[Round "05"]
[TimeControl "180+2"]
[Date "2023.05.09"]
[WhiteClock "0:01:08"]
[BlackClock "0:00:41"]

1. c4 {[%clk 0:03:00]}  e6 {[%clk 0:02:59]} 2. Nc3 {[%clk 0:03:00]}  d5 {[%clk 0:02:59]} 3. d4 {[%clk 0:03:00]}  c6 {[%clk 0:02:59]} 4. cxd5 {[%clk 0:03:00]}  exd5 {[%clk 0:02:58]} 5. Bf4 {[%clk 0:03:01]}  Bf5 {[%clk 0:02:57]} 6. e3 {[%clk 0:03:00]}  Qb6 {[%clk 0:02:55]} 7. Qd2 {[%clk 0:02:54]}  Nf6 {[%clk 0:02:51]} 8. f3 {[%clk 0:02:53]}  Nbd7 {[%clk 0:02:50]} 9. g4 {[%clk 0:02:50]}  Bg6 {[%clk 0:02:50]} 10. h4 {[%clk 0:02:49]}  h6 {[%clk 0:02:49]} 11. Nge2 {[%clk 0:02:43]}  Be7 {[%clk 0:02:17]} 12. Ng3 {[%clk 0:02:43]}  Nf8 {[%clk 0:02:16]} 13. h5 {[%clk 0:02:33]}  Bh7 {[%clk 0:02:16]} 14. Nf5 {[%clk 0:02:32]}  Ne6 {[%clk 0:02:16]} 15. Be5 {[%clk 0:02:26]}  Bxf5 {[%clk 0:02:10]} 16. gxf5 {[%clk 0:02:25]}  Ng5 {[%clk 0:02:11]} 17. Bg2 {[%clk 0:02:23]}  O-O {[%clk 0:02:08]} 18. O-O-O {[%clk 0:02:04]}  Rfe8 {[%clk 0:02:07]} 19. f4 {[%clk 0:01:48]}  Ngh7 {[%clk 0:02:07]} 20. Bf3 {[%clk 0:01:39]}  Bf8 {[%clk 0:02:07]} 21. Rhg1 {[%clk 0:01:35]}  Kh8 {[%clk 0:01:53]} 22. Qg2 {[%clk 0:01:33]}  a5 {[%clk 0:01:30]} 23. Kb1 {[%clk 0:01:32]}  a4 {[%clk 0:01:30]} 24. a3 {[%clk 0:01:32]}  Qd8 {[%clk 0:01:20]} 25. e4 {[%clk 0:01:28]}  dxe4 {[%clk 0:01:01]} 26. Nxe4 {[%clk 0:01:28]}  Qd7 {[%clk 0:01:01]} 27. Bxf6 {[%clk 0:01:18]}  Nxf6 {[%clk 0:01:02]} 28. Nxf6 {[%clk 0:01:17]}  Qxf5+ {[%clk 0:01:00]} 29. Ne4 {[%clk 0:01:17]}  Ra5 {[%clk 0:00:55]} 30. Ka1 {[%clk 0:01:09]}  Rb5 {[%clk 0:00:41]} 31. Nd6 {[%clk 0:01:08]} 1-0


[Site "https://www.chess.com"]

[Event "Titled Tuesday Blitz May 9 Early 2023"]
[White "Sargsyan, Shant"]
[Black "Salinas Herrera, Pablo"]
[WhiteFideId "13306766"]
[BlackFideId "3407128"]
[WhiteElo "2628"]
[BlackElo "2546"]
[Result "1-0"]
[Round "05"]
[TimeControl "180+2"]
[Date "2023.05.09"]
[WhiteClock "0:00:28"]
[BlackClock "0:00:00"]

1. c4 {[%clk 0:03:00]}  e6 {[%clk 0:02:56]} 2. g3 {[%clk 0:03:00]}  d5 {[%clk 0:02:56]} 3. Bg2 {[%clk 0:03:01]}  Nf6 {[%clk 0:02:57]} 4. Nf3 {[%clk 0:03:01]}  Be7 {[%clk 0:02:57]} 5. d4 {[%clk 0:03:01]}  O-O {[%clk 0:02:54]} 6. Nc3 {[%clk 0:03:01]}  c6 {[%clk 0:02:46]} 7. O-O {[%clk 0:03:01]}  b6 {[%clk 0:02:46]} 8. Qd3 {[%clk 0:02:58]}  Bb7 {[%clk 0:02:44]} 9. Rd1 {[%clk 0:02:55]}  Nbd7 {[%clk 0:02:45]} 10. e4 {[%clk 0:02:53]}  dxe4 {[%clk 0:02:45]} 11. Nxe4 {[%clk 0:02:54]}  Qc8 {[%clk 0:02:43]} 12. Nc3 {[%clk 0:02:45]}  c5 {[%clk 0:02:34]} 13. d5 {[%clk 0:02:45]}  exd5 {[%clk 0:02:35]} 14. cxd5 {[%clk 0:02:46]}  a6 {[%clk 0:02:27]} 15. Nh4 {[%clk 0:02:45]}  Re8 {[%clk 0:02:25]} 16. Nf5 {[%clk 0:02:37]}  Bf8 {[%clk 0:02:26]} 17. Bf4 {[%clk 0:02:33]}  c4 {[%clk 0:02:20]} 18. Qc2 {[%clk 0:02:30]}  Ne5 {[%clk 0:02:16]} 19. Bxe5 {[%clk 0:02:24]}  Rxe5 {[%clk 0:02:17]} 20. Nd4 {[%clk 0:02:24]}  b5 {[%clk 0:02:09]} 21. Nc6 {[%clk 0:02:24]}  Re8 {[%clk 0:02:06]} 22. a4 {[%clk 0:02:13]}  b4 {[%clk 0:01:41]} 23. Ne4 {[%clk 0:02:12]}  Nxd5 {[%clk 0:01:32]} 24. Ng5 {[%clk 0:02:13]}  Nf6 {[%clk 0:01:28]} 25. Qxc4 {[%clk 0:02:11]}  Qc7 {[%clk 0:01:22]} 26. Na5 {[%clk 0:01:21]}  Qxc4 {[%clk 0:01:16]} 27. Nxc4 {[%clk 0:01:22]}  Bxg2 {[%clk 0:01:15]} 28. Kxg2 {[%clk 0:01:23]}  Rac8 {[%clk 0:00:56]} 29. Rac1 {[%clk 0:01:23]}  Rc5 {[%clk 0:00:52]} 30. Nf3 {[%clk 0:01:19]}  Rec8 {[%clk 0:00:46]} 31. b3 {[%clk 0:01:19]}  Ne4 {[%clk 0:00:46]} 32. Rd7 {[%clk 0:01:14]}  R5c7 {[%clk 0:00:36]} 33. Rxc7 {[%clk 0:01:00]}  Rxc7 {[%clk 0:00:37]} 34. Re1 {[%clk 0:01:00]}  Nc5 {[%clk 0:00:37]} 35. Na5 {[%clk 0:00:59]}  f6 {[%clk 0:00:35]} 36. Rc1 {[%clk 0:00:56]}  Rd7 {[%clk 0:00:33]} 37. Rc4 {[%clk 0:00:48]}  Nd3 {[%clk 0:00:25]} 38. Rd4 {[%clk 0:00:43]}  Rxd4 {[%clk 0:00:23]} 39. Nxd4 {[%clk 0:00:44]}  Bc5 {[%clk 0:00:23]} 40. Nac6 {[%clk 0:00:36]}  Kf7 {[%clk 0:00:20]} 41. Kf3 {[%clk 0:00:36]}  Ke8 {[%clk 0:00:19]} 42. Ke2 {[%clk 0:00:35]}  Bxd4 {[%clk 0:00:10]} 43. Kxd3 {[%clk 0:00:35]}  Bxf2 {[%clk 0:00:10]} 44. Nxb4 {[%clk 0:00:36]}  a5 {[%clk 0:00:09]} 45. Nc6 {[%clk 0:00:36]}  Bb6 {[%clk 0:00:09]} 46. Kc4 {[%clk 0:00:36]}  Kd7 {[%clk 0:00:10]} 47. Kb5 {[%clk 0:00:36]}  Bg1 {[%clk 0:00:10]} 48. h3 {[%clk 0:00:36]}  Bf2 {[%clk 0:00:09]} 49. g4 {[%clk 0:00:35]}  g6 {[%clk 0:00:09]} 50. Nxa5 {[%clk 0:00:35]}  f5 {[%clk 0:00:09]} 51. gxf5 {[%clk 0:00:36]}  gxf5 {[%clk 0:00:10]} 52. Nc4 {[%clk 0:00:35]}  f4 {[%clk 0:00:10]} 53. a5 {[%clk 0:00:35]}  Bd4 {[%clk 0:00:09]} 54. Nd2 {[%clk 0:00:31]}  Be3 {[%clk 0:00:08]} 55. Nf3 {[%clk 0:00:29]}  Kd6 {[%clk 0:00:09]} 56. Kc4 {[%clk 0:00:28]}  h6 {[%clk 0:00:07]} 57. b4 {[%clk 0:00:29]}  Ke6 {[%clk 0:00:04]} 58. b5 {[%clk 0:00:29]}  Kf5 {[%clk 0:00:00]} 59. Kd5 {[%clk 0:00:28]} 1-0


[Site "https://www.chess.com"]

[Event "Titled Tuesday Blitz May 9 Early 2023"]
[White "Bok, Benjamin"]
[Black "Ivic, Velimir"]
[WhiteFideId "1017063"]
[BlackFideId "950122"]
[WhiteElo "2657"]
[BlackElo "2563"]
[Result "0-1"]
[Round "05"]
[TimeControl "180+2"]
[Date "2023.05.09"]
[WhiteClock "0:00:00"]
[BlackClock "0:00:10"]

1. Nf3 {[%clk 0:03:00]}  Nf6 {[%clk 0:02:59]} 2. c4 {[%clk 0:02:59]}  g6 {[%clk 0:02:59]} 3. g3 {[%clk 0:02:58]}  Bg7 {[%clk 0:02:59]} 4. Bg2 {[%clk 0:02:59]}  O-O {[%clk 0:03:00]} 5. O-O {[%clk 0:02:58]}  d6 {[%clk 0:03:00]} 6. d4 {[%clk 0:02:57]}  c6 {[%clk 0:03:01]} 7. Nc3 {[%clk 0:02:57]}  Bf5 {[%clk 0:03:02]} 8. b3 {[%clk 0:02:47]}  Ne4 {[%clk 0:03:01]} 9. Bb2 {[%clk 0:02:47]}  Nxc3 {[%clk 0:03:01]} 10. Bxc3 {[%clk 0:02:48]}  Be4 {[%clk 0:03:02]} 11. e3 {[%clk 0:02:47]}  Nd7 {[%clk 0:02:56]} 12. Qe2 {[%clk 0:02:47]}  d5 {[%clk 0:02:54]} 13. Rfc1 {[%clk 0:02:44]}  e6 {[%clk 0:02:53]} 14. Bf1 {[%clk 0:02:44]}  Bxf3 {[%clk 0:02:54]} 15. Qxf3 {[%clk 0:02:45]}  f5 {[%clk 0:02:46]} 16. b4 {[%clk 0:02:42]}  Nf6 {[%clk 0:02:41]} 17. a4 {[%clk 0:02:41]}  Ne4 {[%clk 0:02:42]} 18. Be1 {[%clk 0:02:40]}  g5 {[%clk 0:02:42]} 19. b5 {[%clk 0:02:13]}  c5 {[%clk 0:02:33]} 20. cxd5 {[%clk 0:02:12]}  exd5 {[%clk 0:02:31]} 21. dxc5 {[%clk 0:01:57]}  Bxa1 {[%clk 0:02:29]} 22. Rxa1 {[%clk 0:01:58]}  Qf6 {[%clk 0:02:25]} 23. Rd1 {[%clk 0:01:55]}  Rad8 {[%clk 0:02:23]} 24. Bb4 {[%clk 0:00:56]}  d4 {[%clk 0:01:38]} 25. exd4 {[%clk 0:00:40]}  Rxd4 {[%clk 0:01:35]} 26. Qb3+ {[%clk 0:00:39]}  Kg7 {[%clk 0:01:35]} 27. c6 {[%clk 0:00:38]}  Rf7 {[%clk 0:01:22]} 28. cxb7 {[%clk 0:00:25]}  Rxb7 {[%clk 0:01:19]} 29. Rc1 {[%clk 0:00:19]}  Rdd7 {[%clk 0:00:58]} 30. Rc8 {[%clk 0:00:16]}  Rd8 {[%clk 0:00:49]} 31. Rc6 {[%clk 0:00:11]}  Qd4 {[%clk 0:00:49]} 32. Be1 {[%clk 0:00:09]}  Re7 {[%clk 0:00:38]} 33. Qf3 {[%clk 0:00:07]}  Qd1 {[%clk 0:00:31]} 34. Bc3+ {[%clk 0:00:06]}  Kg8 {[%clk 0:00:21]} 35. Qxd1 {[%clk 0:00:03]}  Rxd1 {[%clk 0:00:21]} 36. Kg2 {[%clk 0:00:03]}  Nxc3 {[%clk 0:00:10]} 37. Rxc3 {[%clk 0:00:04]}  g4 {[%clk 0:00:10]} 38. Rd3 {[%clk 0:00:02]}  Ra1 {[%clk 0:00:09]} 39. f4 {[%clk 0:00:01]}  Ree1 {[%clk 0:00:09]} 40. Rd8+ {[%clk 0:00:00]}  Kg7 {[%clk 0:00:10]} 0-1


[Site "https://www.chess.com"]